[Event "Titled Tuesday Blitz February 21 Early 2023"]
[White "Najdin, Danil"]
[Black "Spitzl, Vinzent"]
[WhiteFideId "4172426"]
[BlackFideId "12901253"]
[WhiteElo "2235"]
[BlackElo "2365"]
[Result "0-1"]
[Round "04"]
[TimeControl "180+2"]
[Date "2023.02.21"]
[WhiteClock "0:00:11"]
[BlackClock "0:00:05"]

1. e4 {[%clk 0:02:46]}  e5 {[%clk 0:02:58]} 2. Nf3 {[%clk 0:02:40]}  Nc6 {[%clk 0:02:59]} 3. c3 {[%clk 0:02:40]}  d5 {[%clk 0:02:43]} 4. Bb5 {[%clk 0:02:40]}  f6 {[%clk 0:02:40]} 5. Qa4 {[%clk 0:02:38]}  Ne7 {[%clk 0:02:35]} 6. O-O {[%clk 0:02:29]}  dxe4 {[%clk 0:02:30]} 7. Qxe4 {[%clk 0:02:29]}  Bf5 {[%clk 0:02:27]} 8. Qe2 {[%clk 0:02:28]}  Qd6 {[%clk 0:02:19]} 9. d4 {[%clk 0:02:26]}  O-O-O {[%clk 0:02:13]} 10. dxe5 {[%clk 0:02:22]}  Nxe5 {[%clk 0:02:13]} 11. Nxe5 {[%clk 0:02:22]}  Qxe5 {[%clk 0:02:03]} 12. Qxe5 {[%clk 0:02:21]}  fxe5 {[%clk 0:02:04]} 13. Bg5 {[%clk 0:02:21]}  h6 {[%clk 0:02:03]} 14. Bh4 {[%clk 0:02:21]}  g5 {[%clk 0:02:02]} 15. Bg3 {[%clk 0:02:21]}  Ng6 {[%clk 0:02:03]} 16. Na3 {[%clk 0:01:59]}  a6 {[%clk 0:01:56]} 17. Ba4 {[%clk 0:01:56]}  Nf4 {[%clk 0:01:51]} 18. Bc2 {[%clk 0:01:52]}  Bxc2 {[%clk 0:01:38]} 19. Nxc2 {[%clk 0:01:53]}  Rd2 {[%clk 0:01:37]} 20. Ne3 {[%clk 0:01:38]}  Rxb2 {[%clk 0:01:30]} 21. Nc4 {[%clk 0:01:38]}  Rc2 {[%clk 0:01:25]} 22. Nxe5 {[%clk 0:01:36]}  Bg7 {[%clk 0:01:20]} 23. Bxf4 {[%clk 0:01:30]}  gxf4 {[%clk 0:01:19]} 24. Ng6 {[%clk 0:01:31]}  Re8 {[%clk 0:01:15]} 25. Nxf4 {[%clk 0:01:30]}  Rxc3 {[%clk 0:01:08]} 26. Rac1 {[%clk 0:01:27]}  Rxc1 {[%clk 0:00:54]} 27. Rxc1 {[%clk 0:01:28]}  Re5 {[%clk 0:00:52]} 28. g3 {[%clk 0:01:26]}  b5 {[%clk 0:00:43]} 29. Kg2 {[%clk 0:01:15]}  Kb7 {[%clk 0:00:43]} 30. Kf3 {[%clk 0:01:13]}  Kb6 {[%clk 0:00:39]} 31. Nd3 {[%clk 0:01:11]}  Rd5 {[%clk 0:00:33]} 32. Ke4 {[%clk 0:01:07]}  Rd4+ {[%clk 0:00:31]} 33. Ke3 {[%clk 0:01:08]}  Rd5 {[%clk 0:00:20]} 34. Nf4 {[%clk 0:01:00]}  Re5+ {[%clk 0:00:19]} 35. Kf3 {[%clk 0:00:44]}  c5 {[%clk 0:00:19]} 36. Nd3 {[%clk 0:00:44]}  Rd5 {[%clk 0:00:19]} 37. Nf4 {[%clk 0:00:45]}  Rd6 {[%clk 0:00:19]} 38. Ke4 {[%clk 0:00:44]}  c4 {[%clk 0:00:17]} 39. h4 {[%clk 0:00:38]}  Kc5 {[%clk 0:00:17]} 40. g4 {[%clk 0:00:34]}  b4 {[%clk 0:00:14]} 41. g5 {[%clk 0:00:33]}  hxg5 {[%clk 0:00:14]} 42. hxg5 {[%clk 0:00:33]}  a5 {[%clk 0:00:13]} 43. Kf5 {[%clk 0:00:33]}  Kb5 {[%clk 0:00:08]} 44. Ne6 {[%clk 0:00:30]}  Bb2 {[%clk 0:00:08]} 45. Rg1 {[%clk 0:00:29]}  c3 {[%clk 0:00:07]} 46. g6 {[%clk 0:00:25]}  c2 {[%clk 0:00:08]} 47. g7 {[%clk 0:00:26]}  Bxg7 {[%clk 0:00:08]} 48. Rc1 {[%clk 0:00:21]}  Rd5+ {[%clk 0:00:03]} 49. Ke4 {[%clk 0:00:19]}  Re5+ {[%clk 0:00:03]} 50. Kf4 {[%clk 0:00:19]}  Rxe6 {[%clk 0:00:03]} 51. Rxc2 {[%clk 0:00:19]}  Rc6 {[%clk 0:00:04]} 52. Re2 {[%clk 0:00:19]}  Bc3 {[%clk 0:00:05]} 53. Re8 {[%clk 0:00:14]}  Ka4 {[%clk 0:00:05]} 54. Ke4 {[%clk 0:00:13]}  Rf6 {[%clk 0:00:05]} 55. f4 {[%clk 0:00:13]}  Ka3 {[%clk 0:00:05]} 56. Ra8 {[%clk 0:00:12]}  a4 {[%clk 0:00:06]} 57. f5 {[%clk 0:00:12]}  Kxa2 {[%clk 0:00:04]} 58. Rxa4+ {[%clk 0:00:11]}  Kb3 {[%clk 0:00:05]} 59. Ra8 {[%clk 0:00:11]}  Kc2 {[%clk 0:00:05]} 0-1


[Site "https://www.chess.com"]

[Event "Titled Tuesday Blitz February 21 Early 2023"]
[White "Carrasco Miranda, Andres"]
[Black "Vovk, Orest"]
[WhiteFideId "3405990"]
[BlackFideId "14113490"]
[WhiteElo "2240"]
[BlackElo "2315"]
[Result "0-1"]
[Round "04"]
[TimeControl "180+2"]
[Date "2023.02.21"]
[WhiteClock "0:00:06"]
[BlackClock "0:01:20"]

1. d4 {[%clk 0:02:58]}  h6 {[%clk 0:02:48]} 2. c4 {[%clk 0:02:54]}  g5 {[%clk 0:02:47]} 3. Nc3 {[%clk 0:02:54]}  Bg7 {[%clk 0:02:48]} 4. g3 {[%clk 0:02:54]}  c5 {[%clk 0:02:48]} 5. d5 {[%clk 0:02:53]}  d6 {[%clk 0:02:48]} 6. Bg2 {[%clk 0:02:53]}  Bxc3+ {[%clk 0:02:47]} 7. bxc3 {[%clk 0:02:52]}  Nf6 {[%clk 0:02:48]} 8. h4 {[%clk 0:02:43]}  g4 {[%clk 0:02:47]} 9. h5 {[%clk 0:02:44]}  Nbd7 {[%clk 0:02:47]} 10. e4 {[%clk 0:02:31]}  Ne5 {[%clk 0:02:42]} 11. Bf4 {[%clk 0:02:11]}  Nfd7 {[%clk 0:02:30]} 12. Qa4 {[%clk 0:01:56]}  Qb6 {[%clk 0:02:23]} 13. Bxe5 {[%clk 0:01:52]}  dxe5 {[%clk 0:02:23]} 14. Ne2 {[%clk 0:01:48]}  Qb2 {[%clk 0:02:21]} 15. Qd1 {[%clk 0:01:32]}  Nb6 {[%clk 0:02:16]} 16. O-O {[%clk 0:01:27]}  Nxc4 {[%clk 0:02:13]} 17. Qa4+ {[%clk 0:01:25]}  b5 {[%clk 0:02:11]} 18. Qd1 {[%clk 0:01:16]}  Qd2 {[%clk 0:02:10]} 19. a4 {[%clk 0:00:44]}  Qxd1 {[%clk 0:02:06]} 20. Rfxd1 {[%clk 0:00:45]}  bxa4 {[%clk 0:02:02]} 21. Nc1 {[%clk 0:00:37]}  Bd7 {[%clk 0:01:55]} 22. Nd3 {[%clk 0:00:37]}  Rc8 {[%clk 0:01:53]} 23. Rdb1 {[%clk 0:00:36]}  f6 {[%clk 0:01:45]} 24. Rb7 {[%clk 0:00:34]}  a5 {[%clk 0:01:43]} 25. Ra7 {[%clk 0:00:17]}  a3 {[%clk 0:01:42]} 26. Nc1 {[%clk 0:00:15]}  a4 {[%clk 0:01:40]} 27. Bf1 {[%clk 0:00:15]}  Nd2 {[%clk 0:01:32]} 28. Rxa3 {[%clk 0:00:14]}  Nxe4 {[%clk 0:01:31]} 29. Nd3 {[%clk 0:00:09]}  Nd6 {[%clk 0:01:27]} 30. Be2 {[%clk 0:00:07]}  Nb5 {[%clk 0:01:25]} 31. Rxd7 {[%clk 0:00:07]}  Nxa3 {[%clk 0:01:21]} 32. Ra7 {[%clk 0:00:08]}  Nb5 {[%clk 0:01:20]} 33. Rxa4 {[%clk 0:00:06]}  Nxc3 {[%clk 0:01:20]} 34. Ra7 {[%clk 0:00:06]} 0-1


[Site "https://www.chess.com"]

[Event "Titled Tuesday Blitz February 21 Early 2023"]
[White "Chos, Alexey"]
[Black "Melian, Juan Sebastian"]
[WhiteFideId "14117762"]
[BlackFideId "3706575"]
[WhiteElo "2296"]
[BlackElo "2293"]
[Result "0-1"]
[Round "04"]
[TimeControl "180+2"]
[Date "2023.02.21"]
[WhiteClock "0:02:38"]
[BlackClock "0:01:51"]

1. Nf3 {[%clk 0:02:59]}  g6 {[%clk 0:03:00]} 2. c4 {[%clk 0:03:00]}  Bg7 {[%clk 0:03:01]} 3. g3 {[%clk 0:03:00]}  d6 {[%clk 0:03:01]} 4. Bg2 {[%clk 0:03:01]}  Nc6 {[%clk 0:03:02]} 5. d4 {[%clk 0:02:59]}  Bd7 {[%clk 0:03:01]} 6. O-O {[%clk 0:02:57]}  h5 {[%clk 0:03:01]} 7. h4 {[%clk 0:02:56]}  Qc8 {[%clk 0:03:02]} 8. Nc3 {[%clk 0:02:56]}  Bh3 {[%clk 0:03:01]} 9. e4 {[%clk 0:02:56]}  Nf6 {[%clk 0:02:55]} 10. Be3 {[%clk 0:02:55]}  Bxg2 {[%clk 0:02:54]} 11. Kxg2 {[%clk 0:02:54]}  Ng4 {[%clk 0:02:55]} 12. Qe2 {[%clk 0:02:46]}  O-O {[%clk 0:02:55]} 13. Rad1 {[%clk 0:02:44]}  e5 {[%clk 0:02:33]} 14. dxe5 {[%clk 0:02:41]}  Ncxe5 {[%clk 0:02:06]} 15. Nxe5 {[%clk 0:02:38]}  Nxe5 {[%clk 0:02:07]} 16. Nd5 {[%clk 0:02:38]}  Re8 {[%clk 0:02:06]} 17. Bg5 {[%clk 0:02:38]}  Re6 {[%clk 0:01:51]} 0-1


[Site "https://www.chess.com"]

[Event "Titled Tuesday Blitz February 21 Early 2023"]
[White "Novikov, Evgenij"]
[Black "Begunov, Konstantin"]
[WhiteFideId "4125380"]
[BlackFideId "4118510"]
[WhiteElo "2276"]
[BlackElo "2325"]
[Result "1-0"]
[Round "04"]
[TimeControl "180+2"]
[Date "2023.02.21"]
[WhiteClock "0:00:18"]
[BlackClock "0:00:11"]

1. d4 {[%clk 0:03:00]}  d5 {[%clk 0:02:59]} 2. c4 {[%clk 0:02:57]}  c6 {[%clk 0:03:00]} 3. Nf3 {[%clk 0:02:57]}  Nf6 {[%clk 0:03:01]} 4. Nc3 {[%clk 0:02:56]}  dxc4 {[%clk 0:03:01]} 5. a4 {[%clk 0:02:56]}  Bg4 {[%clk 0:03:02]} 6. Ne5 {[%clk 0:02:56]}  Bh5 {[%clk 0:03:02]} 7. Nxc4 {[%clk 0:02:56]}  e6 {[%clk 0:03:02]} 8. Qb3 {[%clk 0:02:55]}  Na6 {[%clk 0:03:02]} 9. e3 {[%clk 0:02:41]}  Nb4 {[%clk 0:03:01]} 10. Be2 {[%clk 0:02:35]}  Bxe2 {[%clk 0:02:58]} 11. Nxe2 {[%clk 0:02:35]}  Be7 {[%clk 0:02:24]} 12. O-O {[%clk 0:02:34]}  O-O {[%clk 0:02:24]} 13. Bd2 {[%clk 0:02:32]}  a5 {[%clk 0:02:23]} 14. Rad1 {[%clk 0:02:22]}  Ne4 {[%clk 0:02:20]} 15. Ng3 {[%clk 0:02:18]}  Nxd2 {[%clk 0:02:02]} 16. Rxd2 {[%clk 0:02:18]}  Qc7 {[%clk 0:02:01]} 17. Ne4 {[%clk 0:02:01]}  Rfd8 {[%clk 0:02:00]} 18. Rfd1 {[%clk 0:02:01]}  h6 {[%clk 0:01:38]} 19. Rc1 {[%clk 0:01:47]}  Rd5 {[%clk 0:01:36]} 20. Ne5 {[%clk 0:01:40]}  Rad8 {[%clk 0:01:23]} 21. Re2 {[%clk 0:01:26]}  Bd6 {[%clk 0:01:08]} 22. Nf3 {[%clk 0:01:24]}  Bf8 {[%clk 0:00:58]} 23. h3 {[%clk 0:01:21]}  Qe7 {[%clk 0:00:51]} 24. Ne5 {[%clk 0:01:19]}  Qc7 {[%clk 0:00:49]} 25. f4 {[%clk 0:01:15]}  Qb6 {[%clk 0:00:44]} 26. Nc4 {[%clk 0:01:11]}  Qc7 {[%clk 0:00:44]} 27. Rf2 {[%clk 0:01:08]}  Be7 {[%clk 0:00:38]} 28. Ne5 {[%clk 0:01:07]}  Bf8 {[%clk 0:00:35]} 29. Rcf1 {[%clk 0:01:05]}  f6 {[%clk 0:00:24]} 30. Ng6 {[%clk 0:00:58]}  Qf7 {[%clk 0:00:22]} 31. Nh4 {[%clk 0:00:56]}  R5d7 {[%clk 0:00:19]} 32. Nf3 {[%clk 0:00:53]}  Kh8 {[%clk 0:00:18]} 33. Nh4 {[%clk 0:00:51]}  Kh7 {[%clk 0:00:17]} 34. g4 {[%clk 0:00:48]}  Rd5 {[%clk 0:00:16]} 35. Qc3 {[%clk 0:00:41]}  c5 {[%clk 0:00:16]} 36. Nxc5 {[%clk 0:00:37]}  Bxc5 {[%clk 0:00:15]} 37. dxc5 {[%clk 0:00:38]}  Rd3 {[%clk 0:00:16]} 38. Qc4 {[%clk 0:00:37]}  Rxe3 {[%clk 0:00:13]} 39. Rf3 {[%clk 0:00:36]}  Rxf3 {[%clk 0:00:13]} 40. Rxf3 {[%clk 0:00:37]}  Qd7 {[%clk 0:00:12]} 41. Qe4+ {[%clk 0:00:37]}  Kg8 {[%clk 0:00:11]} 42. f5 {[%clk 0:00:35]}  e5 {[%clk 0:00:11]} 43. Ng6 {[%clk 0:00:32]}  Qd1+ {[%clk 0:00:12]} 44. Rf1 {[%clk 0:00:31]}  Qd4+ {[%clk 0:00:12]} 45. Qxd4 {[%clk 0:00:31]}  Rxd4 {[%clk 0:00:13]} 46. Rc1 {[%clk 0:00:29]}  Nc6 {[%clk 0:00:13]} 47. Kg2 {[%clk 0:00:24]}  Rxa4 {[%clk 0:00:13]} 48. Rd1 {[%clk 0:00:25]}  Rd4 {[%clk 0:00:13]} 49. Rc1 {[%clk 0:00:23]}  Kf7 {[%clk 0:00:13]} 50. Kf3 {[%clk 0:00:22]}  Ke8 {[%clk 0:00:13]} 51. Ke3 {[%clk 0:00:21]}  Kd7 {[%clk 0:00:12]} 52. Nf8+ {[%clk 0:00:19]}  Ke7 {[%clk 0:00:12]} 53. Ne6 {[%clk 0:00:20]}  Rb4 {[%clk 0:00:11]} 54. Nxg7 {[%clk 0:00:18]} 1-0


[Site "https://www.chess.com"]

[Event "Titled Tuesday Blitz February 21 Early 2023"]
[White "The_Sherman_Variation"]
[Black "Avazkhonov, Alikhon"]
[BlackFideId "14208504"]
[WhiteElo "2513"]
[BlackElo "1538"]
[Result "1-0"]
[Round "04"]
[TimeControl "180+2"]
[Date "2023.02.21"]
[WhiteClock "0:00:20"]
[BlackClock "0:00:02"]

1. c4 {[%clk 0:03:00]}  e5 {[%clk 0:02:55]} 2. Nc3 {[%clk 0:02:59]}  d6 {[%clk 0:02:56]} 3. e4 {[%clk 0:02:58]}  f5 {[%clk 0:02:53]} 4. d3 {[%clk 0:02:55]}  Nf6 {[%clk 0:02:54]} 5. g3 {[%clk 0:02:54]}  Be7 {[%clk 0:02:54]} 6. Bg2 {[%clk 0:02:55]}  O-O {[%clk 0:02:54]} 7. Nge2 {[%clk 0:02:55]}  c6 {[%clk 0:02:43]} 8. O-O {[%clk 0:02:54]}  a5 {[%clk 0:02:43]} 9. a3 {[%clk 0:02:53]}  Na6 {[%clk 0:02:44]} 10. Rb1 {[%clk 0:02:53]}  Nc7 {[%clk 0:02:43]} 11. b4 {[%clk 0:02:53]}  Qe8 {[%clk 0:02:41]} 12. b5 {[%clk 0:02:50]}  Ne6 {[%clk 0:02:36]} 13. Be3 {[%clk 0:02:42]}  Ng4 {[%clk 0:02:17]} 14. Bb6 {[%clk 0:02:24]}  f4 {[%clk 0:02:00]} 15. f3 {[%clk 0:02:18]}  Ne3 {[%clk 0:01:42]} 16. Bxe3 {[%clk 0:02:18]}  fxe3 {[%clk 0:01:43]} 17. Na4 {[%clk 0:02:09]}  Ng5 {[%clk 0:01:25]} 18. Nb6 {[%clk 0:01:50]}  Rb8 {[%clk 0:01:12]} 19. Nxc8 {[%clk 0:01:48]}  Qxc8 {[%clk 0:01:12]} 20. Qc1 {[%clk 0:01:48]}  d5 {[%clk 0:00:41]} 21. Qxe3 {[%clk 0:01:42]}  d4 {[%clk 0:00:36]} 22. Qd2 {[%clk 0:01:39]}  b6 {[%clk 0:00:29]} 23. f4 {[%clk 0:01:26]}  Ne6 {[%clk 0:00:26]} 24. fxe5 {[%clk 0:01:23]}  Bg5 {[%clk 0:00:12]} 25. Nf4 {[%clk 0:01:23]}  cxb5 {[%clk 0:00:09]} 26. Rxb5 {[%clk 0:01:19]}  Nc5 {[%clk 0:00:08]} 27. h4 {[%clk 0:01:15]}  Bh6 {[%clk 0:00:08]} 28. Qe2 {[%clk 0:01:08]}  Qe8 {[%clk 0:00:06]} 29. Nd5 {[%clk 0:01:02]}  Qxe5 {[%clk 0:00:06]} 30. Kh2 {[%clk 0:00:59]}  Rxf1 {[%clk 0:00:06]} 31. Bxf1 {[%clk 0:00:57]}  Rf8 {[%clk 0:00:06]} 32. Rxb6 {[%clk 0:00:48]}  Na4 {[%clk 0:00:06]} 33. Rb7 {[%clk 0:00:41]}  Nc3 {[%clk 0:00:05]} 34. Qg2 {[%clk 0:00:31]}  Nxd5 {[%clk 0:00:04]} 35. cxd5 {[%clk 0:00:28]}  Be3 {[%clk 0:00:04]} 36. Rb2 {[%clk 0:00:27]}  Bc1 {[%clk 0:00:03]} 37. Rc2 {[%clk 0:00:26]}  Bxa3 {[%clk 0:00:03]} 38. Be2 {[%clk 0:00:25]}  Bd6 {[%clk 0:00:04]} 39. Bg4 {[%clk 0:00:25]}  h6 {[%clk 0:00:03]} 40. Rf2 {[%clk 0:00:23]}  Rxf2 {[%clk 0:00:02]} 41. Qxf2 {[%clk 0:00:24]}  a4 {[%clk 0:00:03]} 42. Be6+ {[%clk 0:00:24]}  Kh7 {[%clk 0:00:03]} 43. Bf5+ {[%clk 0:00:20]}  g6 {[%clk 0:00:02]} 44. Be6 {[%clk 0:00:20]}  Kh8 {[%clk 0:00:02]} 45. Kh1 {[%clk 0:00:18]}  Qxg3 {[%clk 0:00:02]} 46. Qf6+ {[%clk 0:00:19]}  Kh7 {[%clk 0:00:02]} 47. Qf7+ {[%clk 0:00:19]}  Kh8 {[%clk 0:00:02]} 48. Qg8# {[%clk 0:00:20]} 1-0


[Site "https://www.chess.com"]

[Event "Titled Tuesday Blitz February 21 Early 2023"]
[White "Leenhouts, Koen"]
[Black "Mogirzan, Matei-Valeriu"]
[WhiteFideId "1008439"]
[BlackFideId "1257455"]
[WhiteElo "2447"]
[BlackElo "1813"]
[Result "0-1"]
[Round "04"]
[TimeControl "180+2"]
[Date "2023.02.21"]
[WhiteClock "0:00:13"]
[BlackClock "0:00:05"]

1. e4 {[%clk 0:02:59]}  e5 {[%clk 0:02:56]} 2. Nf3 {[%clk 0:02:58]}  Nf6 {[%clk 0:02:57]} 3. Nxe5 {[%clk 0:02:56]}  Nc6 {[%clk 0:02:57]} 4. Nxc6 {[%clk 0:02:55]}  dxc6 {[%clk 0:02:58]} 5. Nc3 {[%clk 0:02:54]}  Bc5 {[%clk 0:02:58]} 6. d3 {[%clk 0:02:51]}  Ng4 {[%clk 0:02:57]} 7. Be3 {[%clk 0:02:47]}  Nxe3 {[%clk 0:02:54]} 8. fxe3 {[%clk 0:02:47]}  Bxe3 {[%clk 0:02:55]} 9. Qf3 {[%clk 0:02:45]}  Qg5 {[%clk 0:02:54]} 10. h4 {[%clk 0:02:42]}  Bd2+ {[%clk 0:02:51]} 11. Kd1 {[%clk 0:02:32]}  Qh6 {[%clk 0:02:43]} 12. g4 {[%clk 0:02:25]}  Bxc3 {[%clk 0:02:40]} 13. bxc3 {[%clk 0:02:24]}  Qg6 {[%clk 0:02:35]} 14. Be2 {[%clk 0:02:22]}  Bd7 {[%clk 0:02:29]} 15. Kd2 {[%clk 0:02:08]}  O-O-O {[%clk 0:02:28]} 16. Raf1 {[%clk 0:02:09]}  f6 {[%clk 0:02:27]} 17. Qe3 {[%clk 0:02:06]}  Kb8 {[%clk 0:02:24]} 18. g5 {[%clk 0:02:05]}  fxg5 {[%clk 0:02:16]} 19. hxg5 {[%clk 0:02:04]}  Qe6 {[%clk 0:02:17]} 20. a4 {[%clk 0:01:51]}  c5 {[%clk 0:02:08]} 21. Qxc5 {[%clk 0:01:48]}  Bxa4 {[%clk 0:02:07]} 22. Qb4 {[%clk 0:01:26]}  Bc6 {[%clk 0:01:55]} 23. Kc1 {[%clk 0:01:21]}  Qe5 {[%clk 0:01:42]} 24. Rf5 {[%clk 0:01:19]}  Qxf5 {[%clk 0:01:39]} 25. exf5 {[%clk 0:01:20]}  Bxh1 {[%clk 0:01:39]} 26. f6 {[%clk 0:01:17]}  gxf6 {[%clk 0:01:38]} 27. gxf6 {[%clk 0:01:18]}  Rhf8 {[%clk 0:01:38]} 28. Qh4 {[%clk 0:01:18]}  Bd5 {[%clk 0:01:23]} 29. c4 {[%clk 0:01:12]}  Bg8 {[%clk 0:01:17]} 30. Qh6 {[%clk 0:01:03]}  a5 {[%clk 0:01:05]} 31. Bf3 {[%clk 0:01:01]}  a4 {[%clk 0:01:00]} 32. Kb2 {[%clk 0:01:01]}  Rf7 {[%clk 0:00:51]} 33. Bd5 {[%clk 0:00:59]}  Rfd7 {[%clk 0:00:44]} 34. Be4 {[%clk 0:00:54]}  Rf7 {[%clk 0:00:37]} 35. Qg5 {[%clk 0:00:54]}  Rdf8 {[%clk 0:00:36]} 36. Bd5 {[%clk 0:00:50]}  Rxf6 {[%clk 0:00:35]} 37. Bh1 {[%clk 0:00:39]}  Rg6 {[%clk 0:00:32]} 38. Qc5 {[%clk 0:00:35]}  Rff6 {[%clk 0:00:31]} 39. Ka3 {[%clk 0:00:33]}  Rb6 {[%clk 0:00:26]} 40. Qf8+ {[%clk 0:00:31]}  Ka7 {[%clk 0:00:24]} 41. Qf2 {[%clk 0:00:23]}  Rf6 {[%clk 0:00:20]} 42. Qd4 {[%clk 0:00:23]}  Rf1 {[%clk 0:00:18]} 43. c5 {[%clk 0:00:23]}  Rbb1 {[%clk 0:00:08]} 44. Qxa4+ {[%clk 0:00:20]}  Kb8 {[%clk 0:00:06]} 45. Qe8+ {[%clk 0:00:19]}  Ka7 {[%clk 0:00:06]} 46. Qa4+ {[%clk 0:00:19]}  Kb8 {[%clk 0:00:05]} 47. Qe8+ {[%clk 0:00:16]}  Ka7 {[%clk 0:00:06]} 48. Qxg8 {[%clk 0:00:14]}  Rb5 {[%clk 0:00:06]} 49. Qd5 {[%clk 0:00:11]}  Ra1+ {[%clk 0:00:05]} 50. Qa2 {[%clk 0:00:12]}  Rxa2+ {[%clk 0:00:05]} 51. Kxa2 {[%clk 0:00:12]}  Rxc5 {[%clk 0:00:05]} 52. c4 {[%clk 0:00:13]}  Kb6 {[%clk 0:00:06]} 53. Kb3 {[%clk 0:00:13]}  Rh5 {[%clk 0:00:06]} 54. Be4 {[%clk 0:00:13]}  c5 {[%clk 0:00:05]} 55. Bf3 {[%clk 0:00:12]}  Rh3 {[%clk 0:00:05]} 56. Be4 {[%clk 0:00:12]}  h5 {[%clk 0:00:05]} 57. Ka4 {[%clk 0:00:13]}  Rg3 {[%clk 0:00:05]} 58. Bf5 {[%clk 0:00:13]}  h4 {[%clk 0:00:05]} 0-1


[Site "https://www.chess.com"]

[Event "Titled Tuesday Blitz February 21 Early 2023"]
[White "Reprintsev, Alexander"]
[Black "Uzcategui Rodriguez, Alejandro"]
[WhiteFideId "14100541"]
[BlackFideId "3903400"]
[WhiteElo "2253"]
[BlackElo "2255"]
[Result "1-0"]
[Round "04"]
[TimeControl "180+2"]
[Date "2023.02.21"]
[WhiteClock "0:01:44"]
[BlackClock "0:01:48"]

1. e4 {[%clk 0:02:57]}  e6 {[%clk 0:02:59]} 2. d4 {[%clk 0:02:57]}  d5 {[%clk 0:03:00]} 3. Nc3 {[%clk 0:02:57]}  Nf6 {[%clk 0:03:00]} 4. Bg5 {[%clk 0:02:57]}  Be7 {[%clk 0:02:47]} 5. e5 {[%clk 0:02:56]}  Nfd7 {[%clk 0:02:47]} 6. h4 {[%clk 0:02:56]}  a6 {[%clk 0:02:44]} 7. Qg4 {[%clk 0:02:55]}  f5 {[%clk 0:02:32]} 8. Qg3 {[%clk 0:02:30]}  c5 {[%clk 0:02:29]} 9. Nf3 {[%clk 0:02:28]}  Nc6 {[%clk 0:02:28]} 10. dxc5 {[%clk 0:02:23]}  Nxc5 {[%clk 0:02:27]} 11. O-O-O {[%clk 0:02:21]}  Bxg5+ {[%clk 0:02:18]} 12. hxg5 {[%clk 0:02:16]}  b5 {[%clk 0:02:11]} 13. Bd3 {[%clk 0:02:01]}  b4 {[%clk 0:02:08]} 14. Ne2 {[%clk 0:02:01]}  Qa5 {[%clk 0:02:07]} 15. Kb1 {[%clk 0:01:58]}  Bd7 {[%clk 0:02:05]} 16. Ned4 {[%clk 0:01:56]}  O-O-O {[%clk 0:02:02]} 17. Nxc6 {[%clk 0:01:56]}  Bxc6 {[%clk 0:02:02]} 18. Nd4 {[%clk 0:01:56]}  Bd7 {[%clk 0:02:01]} 19. Rh4 {[%clk 0:01:55]}  Na4 {[%clk 0:01:55]} 20. Nb3 {[%clk 0:01:48]}  Qc7 {[%clk 0:01:49]} 21. Bxa6+ {[%clk 0:01:46]}  Kb8 {[%clk 0:01:49]} 22. Rxb4+ {[%clk 0:01:44]}  Ka7 {[%clk 0:01:49]} 23. Rb7+ {[%clk 0:01:43]}  Qxb7 {[%clk 0:01:48]} 24. Bxb7 {[%clk 0:01:44]} 1-0


[Site "https://www.chess.com"]

[Event "Titled Tuesday Blitz February 21 Early 2023"]
[White "Shubin, Daniel"]
[Black "Zochowski, Kacper"]
[WhiteFideId "30936470"]
[BlackFideId "1125494"]
[WhiteElo "2231"]
[BlackElo "2262"]
[Result "1-0"]
[Round "04"]
[TimeControl "180+2"]
[Date "2023.02.21"]
[WhiteClock "0:00:47"]
[BlackClock "0:00:19"]

1. e4 {[%clk 0:03:00]}  c5 {[%clk 0:02:59]} 2. Nf3 {[%clk 0:03:00]}  e6 {[%clk 0:02:59]} 3. d4 {[%clk 0:03:01]}  cxd4 {[%clk 0:03:00]} 4. Nxd4 {[%clk 0:03:02]}  a6 {[%clk 0:03:00]} 5. c4 {[%clk 0:03:00]}  Nc6 {[%clk 0:02:58]} 6. Nc3 {[%clk 0:03:00]}  Bb4 {[%clk 0:02:48]} 7. Qd3 {[%clk 0:03:00]}  Nf6 {[%clk 0:02:44]} 8. Nxc6 {[%clk 0:02:58]}  dxc6 {[%clk 0:02:34]} 9. Qxd8+ {[%clk 0:02:58]}  Kxd8 {[%clk 0:02:34]} 10. e5 {[%clk 0:02:56]}  Ne4 {[%clk 0:02:32]} 11. a3 {[%clk 0:02:56]}  Bxc3+ {[%clk 0:02:24]} 12. bxc3 {[%clk 0:02:57]}  Ke7 {[%clk 0:02:23]} 13. Be3 {[%clk 0:02:49]}  f6 {[%clk 0:01:47]} 14. Bd3 {[%clk 0:02:37]}  Nxc3 {[%clk 0:01:46]} 15. a4 {[%clk 0:02:36]}  b5 {[%clk 0:01:25]} 16. axb5 {[%clk 0:02:11]}  cxb5 {[%clk 0:01:24]} 17. cxb5 {[%clk 0:02:09]}  a5 {[%clk 0:01:08]} 18. Bc5+ {[%clk 0:02:01]}  Kf7 {[%clk 0:01:07]} 19. O-O {[%clk 0:01:40]}  Nd5 {[%clk 0:01:06]} 20. exf6 {[%clk 0:01:34]}  gxf6 {[%clk 0:01:06]} 21. Ra3 {[%clk 0:01:23]}  Bb7 {[%clk 0:01:03]} 22. Be4 {[%clk 0:01:21]}  f5 {[%clk 0:01:01]} 23. Bf3 {[%clk 0:01:21]}  Rhb8 {[%clk 0:00:45]} 24. Rfa1 {[%clk 0:01:17]}  e5 {[%clk 0:00:32]} 25. Rxa5 {[%clk 0:01:08]}  Rxa5 {[%clk 0:00:30]} 26. Rxa5 {[%clk 0:01:09]}  e4 {[%clk 0:00:30]} 27. Be2 {[%clk 0:01:04]}  Nc3 {[%clk 0:00:20]} 28. Bc4+ {[%clk 0:01:03]}  Bd5 {[%clk 0:00:21]} 29. Bxd5+ {[%clk 0:00:54]}  Nxd5 {[%clk 0:00:21]} 30. g3 {[%clk 0:00:50]}  Ke6 {[%clk 0:00:21]} 31. Ra6+ {[%clk 0:00:48]}  Ke5 {[%clk 0:00:19]} 32. Bd6+ {[%clk 0:00:47]} 1-0


[Site "https://www.chess.com"]